bitfinex/quotes_ETHUSD_20251015
["timestamp","ask_amount","ask_price","bid_price","bid_amount"]
[1760555680611,1.728,3998.6,3998.5,0.4487]
[1760555680930,1.728,3998.6,3998.1,0.4487]
[1760555681128,0.001,3998.8,3998.4,2.50098746]
[1760555681330,1.729,3998.8,3998.5,0.4487]
[1760555681732,0.001,3998.8,3998.6,2.50084618]
[1760555681910,0.001,3998.8,3998.7,0.4487]
[1760555682112,0.001,3998.8,3998.6,2.50084618]
[1760555682431,0.001,3998.8,3998.4,2.50093926]
[1760555682633,0.001,3998.8,3998.4,2.94963926]
[1760555682833,0.001,3998.8,3998.5,2.50092585]
[1760555683239,0.001,3998.8,3998.5,2.94962585]
[1760555683946,0.001,3998.8,3998.6,2.94956508]
[1760555684409,0.001,3998.8,3998.7,2.50081276]
[1760555684614,0.001,3998.8,3998.7,2.94951276]
[1760555685029,0.001,3998.8,3998.7,0.4487]
[1760555686421,0.001,3998.8,3998.7,2.94951276]
[1760555686622,0.001,3998.8,3998.7,3.49455751]
[1760555687614,0.1258,3998.8,3998.7,3.49455751]
[1760555691417,0.1258,3998.8,3998.7,3.04585751]
[1760555691633,0.1258,3998.8,3998.7,3.49405751]
[1760555693232,0.001,3998.8,3998.7,6.91608953]
[1760555693432,0.001,3998.8,3998.7,3.49405751]
[1760555693751,0.001,3998.8,3998.4,3.42203202]
[1760555693752,0.1248,3998.7,3998.4,2.50098376]
[1760555693935,0.001,3998.8,3998.4,2.50098376]
[1760555694138,0.1248,3998.4,3998.2,2.5011255]
[1760555694337,0.1248,3998.4,3998.3,2.50106295]
[1760555694534,0.1248,3998.4,3998.3,2.94926295]
[1760555695138,0.1248,3998.4,3998.3,2.50106295]
[1760555696471,0.1248,3998.4,3998.1,0.002]
[1760555696639,3.52103202,3998.7,3998.1,2.50317172]
[1760555696842,12.50177279,3998.8,3998.1,2.50317172]
[1760555696843,3.42203202,3998.4,3998.1,0.002]
[1760555697146,30.0,3998.5,3998.1,0.002]
[1760555697533,30.099,3998.5,3998.1,2.50316732]
[1760555697734,30.0,3998.6,3998.1,2.50316732]
[1760555697938,30.0,3998.5,3998.1,2.50316732]
[1760555698683,30.0,3998.5,3998.1,2.50317233]
[1760555699457,30.0,3998.5,3998.2,2.5011067]
[1760555700371,30.0,3998.5,3998.1,2.50316855]
[1760555700580,0.1248,3998.2,3998.1,2.50316855]
[1760555701168,0.1248,3998.2,3998.1,0.002]
[1760555701594,34.4529255,3998.2,3998.1,0.002]
[1760555702592,35.36720554,3998.2,3998.1,0.002]
[1760555703152,32.86608004,3998.2,3998.1,0.002]
[1760555703394,31.728,3998.2,3998.1,0.002]
[1760555703608,13.759,3998.2,3998.1,0.002]
[1760555703758,1.728,3998.2,3998.1,0.002]
[1760555703959,1.728,3998.2,3998.1,2.95888806]
[1760555704604,1.728,3998.2,3998.1,0.002]
[1760555704803,35.15003202,3998.2,3998.1,0.002]
[1760555705192,14.07103202,3998.2,3998.1,0.002]
[1760555705374,1.728,3998.2,3998.1,0.002]
[1760555705579,1.728,3998.2,3998.1,2.95888806]
[1760555706300,1.728,3998.2,3998.1,2.50318806]
[1760555706589,1.728,3998.2,3998.1,2.95888806]
[1760555706795,0.001,3998.8,3998.2,2.5011255]
[1760555707002,0.001,3998.8,3998.1,2.95888806]
[1760555707161,0.001,3998.8,3998.1,0.002]
[1760555707365,7.935,3998.5,3998.1,0.002]
[1760555707671,14.216,3998.5,3998.2,2.50109451]
[1760555708008,14.216,3998.5,3998.1,0.002]
[1760555708703,14.216,3998.5,3998.1,2.50313209]
[1760555708902,14.216,3998.5,3998.1,0.002]
[1760555709486,14.315,3998.5,3998.1,0.002]
[1760555709800,30.0,3998.5,3998.1,0.002]
[1760555710573,30.0,3998.5,3998.1,2.50317564]
[1760555710787,20.677,3998.5,3998.1,2.50317564]
[1760555711103,20.677,3998.5,3998.1,0.002]
[1760555711303,30.0,3998.4,3998.1,0.002]
[1760555711690,30.0,3998.5,3998.1,0.002]
[1760555712005,30.0,3998.5,3998.1,2.5031583]
[1760555712207,12.015,3998.5,3998.1,2.5031583]
[1760555714495,25.299,3998.5,3998.2,2.50112262]
[1760555714687,25.299,3998.5,3998.1,2.50317072]
[1760555715205,21.118,3998.5,3998.2,2.50107856]
[1760555715376,20.118,3998.5,3998.2,2.50107856]
[1760555715578,0.1248,3998.2,3998.1,0.4577]
[1760555715902,0.1248,3998.2,3998.1,2.95885287]
[1760555716712,1.729,3998.8,3998.6,2.50082008]
[1760555716904,0.001,3998.8,3998.7,2.95651276]
[1760555717470,0.001,3998.8,3998.6,2.50081969]
[1760555717784,0.1248,3998.6,3998.5,2.50093785]
[1760555718306,0.1248,3998.6,3998.5,2.95663785]
[1760555721791,0.1248,3998.6,3998.1,0.002]
[1760555722003,30.0,3998.7,3998.1,0.002]
[1760555722181,3.42203202,3998.4,3998.1,0.002]
[1760555722499,1.728,3998.6,3998.1,0.002]
[1760555722660,25.065,3998.6,3998.1,0.002]
[1760555724095,2.5011255,3998.2,3998.1,0.002]
[1760555724395,34.2291255,3998.2,3998.1,0.002]
[1760555724573,34.9617255,3998.2,3998.1,0.002]
[1760555727074,4.9617255,3998.2,3998.1,0.002]
[1760555727264,34.9617255,3998.2,3998.1,0.002]
[1760555727467,35.24240554,3998.2,3998.1,0.002]
[1760555727961,34.9617255,3998.2,3998.1,0.002]
[1760555732308,4.9617255,3998.2,3998.1,0.002]
[1760555732512,34.9617255,3998.2,3998.1,0.002]
[1760555732892,34.9617255,3998.2,3997.7,0.002]
[1760555732893,30.6336,3996.6,3995.1,0.002]
[1760555733094,9.34612824,3996.7,3995.1,0.002]
[1760555733095,37.65303562,3995.2,3995.1,0.002]
[1760555733386,39.60452438,3995.2,3995.1,0.002]
[1760555733604,39.44871506,3995.2,3995.1,0.002]
[1760555734022,5.064,3995.2,3995.1,0.2212]
[1760555734250,5.064,3995.2,3995.1,0.6845]
[1760555734399,10.9570036,3995.2,3995.1,0.6845]
[1760555734738,10.9570036,3995.2,3995.1,0.002]
[1760555735099,11.37840428,3995.2,3995.1,0.002]
[1760555735325,11.37840428,3995.2,3994.3,0.002]
[1760555735326,32.5035049,3994.4,3994.3,0.002]
[1760555735530,34.8651049,3994.4,3994.3,0.002]
[1760555735696,45.51642914,3994.4,3994.3,0.002]
[1760555735900,34.2315049,3994.4,3994.3,0.002]
[1760555736104,1.728,3994.4,3994.3,0.4653]
[1760555736632,4.2315049,3994.4,3994.3,0.4653]
[1760555737405,34.2315049,3994.4,3994.3,0.002]
[1760555737705,35.35883892,3994.4,3994.3,0.002]
[1760555738008,35.25983892,3994.4,3994.3,0.002]
[1760555738743,34.2315049,3994.4,3994.3,0.002]
[1760555738946,14.804,3994.4,3994.3,0.002]
[1760555739146,17.3075049,3994.4,3994.3,0.4653]
[1760555739347,17.3075049,3994.4,3994.3,0.002]
[1760555739651,34.8651049,3994.4,3994.3,0.002]
[1760555740144,34.9641049,3994.4,3994.3,0.002]
[1760555740472,5.35883892,3994.4,3994.3,0.002]
[1760555740644,35.35883892,3994.4,3994.3,0.002]
[1760555740809,35.25983892,3994.4,3994.3,0.002]
[1760555741208,34.8651049,3994.4,3994.3,0.002]
[1760555741631,1.728,3994.4,3994.3,0.4653]
[1760555744352,4.2315049,3994.4,3994.3,0.4653]
[1760555744552,34.2315049,3994.4,3994.3,0.002]
[1760555744762,4.2315049,3994.4,3994.3,0.002]
[1760555745047,34.2315049,3994.4,3994.3,0.002]
[1760555745562,0.6336,3995.2,3994.3,0.002]
[1760555745563,0.219,3997.6,3994.3,11.43272356]
[1760555745774,0.219,3999.0,3996.2,0.6336]
[1760555745953,0.219,3999.0,3997.3,2.50167192]
[1760555745954,0.13088144,3997.8,3997.3,2.50167192]
[1760555746127,0.13088144,3997.8,3997.4,0.02501626]
[1760555746329,20.5,3998.7,3996.9,2.50193233]
[1760555746630,20.5,3998.7,3997.0,2.50187046]
[1760555746828,20.5,3998.7,3996.9,0.25019323]
[1760555747148,20.5,3998.7,3997.6,2.50144043]
[1760555747654,20.5,3998.5,3997.6,2.50144043]
[1760555748021,1.728,3998.4,3997.0,2.50186653]
[1760555748142,20.5,3998.3,3997.9,2.50130172]
[1760555748346,0.001,3998.8,3998.0,2.50124261]
[1760555748571,10.0,3998.6,3996.7,2.5020642]
[1760555748869,0.001,3998.8,3998.0,2.50125028]
[1760555748870,1.728,3998.5,3998.0,2.50125028]
[1760555749073,10.0,3998.6,3996.8,0.56158465]
[1760555749281,0.001,3998.8,3998.2,2.50112178]
[1760555749976,0.001,3998.8,3996.8,0.56158465]
[1760555750171,0.001,3998.8,3998.5,2.5009232]
[1760555750530,0.001,3998.8,3998.6,2.50085917]
[1760555750743,0.001,3998.8,3998.3,2.50100616]
[1760555751340,0.001,3998.8,3998.2,2.50108084]
[1760555751881,0.001,3998.8,3998.4,2.50099971]
[1760555752967,0.001,3998.8,3997.2,0.6336]
[1760555753173,20.9738,3998.7,3996.8,0.56158465]
[1760555753464,20.5,3998.1,3995.3,2.50294095]
[1760555753662,20.5,3997.9,3996.8,2.5020016]
[1760555753967,20.5,3997.7,3996.9,2.50192909]
[1760555754145,20.5,3997.7,3996.8,2.5019815]
[1760555754335,20.5,3997.7,3996.2,1.728]
[1760555754336,20.5,3997.6,3996.9,2.50192819]
[1760555754535,20.5,3997.7,3996.9,2.50192819]
[1760555754964,20.5,3997.7,3995.4,0.75235015]
[1760555755165,20.5,3997.7,3992.6,0.25046335]
[1760555755166,20.5,3997.3,3996.5,2.50212984]
[1760555755469,2.50157371,3997.5,3996.6,2.50212671]
[1760555755470,20.5,3997.4,3996.6,2.50212671]
[1760555755698,0.1248,3996.7,3996.0,0.1248]
[1760555755873,0.1248,3996.7,3996.6,2.5021268]
[1760555760267,0.2283,3997.8,3997.1,2.50176564]
[1760555760493,0.1248,3997.0,3996.6,0.50043373]
[1760555760674,0.1248,3997.0,3996.9,2.501939]
[1760555761285,0.12377311,3997.0,3996.9,2.501939]
[1760555766167,0.12377311,3997.0,3996.1,2.50240369]
[1760555766372,0.1248,3996.6,3996.5,2.50218941]
[1760555768999,10.56762356,3996.6,3995.4,0.002]
[1760555769176,23.00281566,3995.5,3995.4,0.002]
[1760555769375,4.23106625,3995.1,3994.6,0.002]
[1760555769570,24.73106625,3995.1,3994.6,0.002]
[1760555769774,25.16796625,3995.1,3994.6,0.002]
[1760555770010,23.00331689,3994.7,3994.6,0.002]
[1760555770208,24.73131689,3994.7,3994.6,0.002]
[1760555770373,25.16821689,3994.7,3994.6,0.002]
[1760555771505,25.80181689,3994.7,3994.6,0.002]
[1760555774887,0.39254338,3996.0,3994.6,0.6356]
[1760555775082,0.001,3997.8,3996.9,2.501939]
[1760555775329,1.40997865,3997.7,3996.9,0.2501939]
[1760555775622,3.11494531,3997.0,3995.1,1.728]
[1760555775927,2.14221198,3996.9,3995.4,2.3616]
[1760555776216,2.14221198,3996.9,3995.3,1.728]
[1760555776217,0.001,3997.0,3996.8,2.50196874]
[1760555776512,0.001,3997.0,3996.9,2.501939]
[1760555779638,0.1248,3997.7,3997.3,2.50168863]
[1760555779933,0.1248,3997.7,3997.3,3.00203887]
[1760555780144,0.2281,4000.1,3998.7,2.50081276]
[1760555780448,0.2281,4000.1,3998.7,2.52582088]
[1760555780449,0.1258,3999.2,3998.7,2.52582088]
[1760555780852,0.001,3999.2,3998.7,2.52582088]
[1760555781315,0.001,3999.2,3998.7,14.99313632]
[1760555781645,0.001,4002.5,3998.7,14.99313632]
[1760555781646,0.2236,4001.4,3999.9,2.5000625]
[1760555781935,0.2236,4001.4,3999.9,3.65868438]
[1760555782335,0.001,4002.4,3999.9,5.38668438]
[1760555782524,0.4732,4002.3,3999.9,15.49240732]
[1760555783598,0.001,4002.4,3999.9,15.49240732]
[1760555783599,0.001,4002.4,4001.4,2.4991253]
[1760555783800,0.001,4002.4,4001.4,3.1327253]
[1760555784038,0.001,4002.4,4000.7,4.22753514]
[1760555784039,0.2236,4001.9,4000.1,10.13072356]
[1760555784345,0.2236,4001.9,4001.1,2.49927435]
[1760555784538,0.2236,4001.9,4000.6,1.728]
[1760555784743,0.2236,4001.9,4001.3,2.49915409]
[1760555784906,0.2236,4001.9,4000.9,2.49938585]
[1760555785114,0.2236,4001.9,4001.4,2.4991253]
[1760555785307,0.001,4002.4,4001.4,2.52411655]
[1760555786075,0.001,4002.4,4001.4,3.1327253]
[1760555788980,0.001,4002.4,4001.4,2.4991253]
[1760555789671,0.001,4002.4,4001.4,2.52411655]
[1760555789841,0.001,4002.4,4001.4,3.00145863]
[1760555790368,0.001,4002.4,4001.4,3.02644988]
[1760555790554,0.001,4002.4,4001.4,3.66004988]
[1760555790942,0.001,4002.4,4001.4,3.63505863]
[1760555791146,0.001,4002.4,4001.4,15.51877344]
[1760555791367,0.001,4002.4,4001.4,15.61858219]
[1760555792270,0.001,4002.0,4001.4,15.61858219]
[1760555794158,0.001,4002.0,4001.4,15.49378219]
[1760555794362,0.001,4002.0,4001.4,15.61858219]
[1760555795017,0.001,4002.0,4001.4,18.20258219]
[1760555795464,0.001,4002.0,4001.9,2.49881306]
[1760555795664,0.001,4002.0,4001.9,4.75157204]
[1760555795859,0.001,4002.0,4001.9,4.87637204]
[1760555796062,0.001,4002.4,4002.3,3.13216332]
[1760555796303,0.001,4002.4,4002.3,15.35690756]
[1760555796501,0.001,4002.4,4002.3,15.33192193]
[1760555796665,0.001,4002.4,4002.3,17.37327869]
[1760555797266,0.001,4002.4,4002.3,7.02632008]
[1760555800003,1e-08,4003.4,4002.4,2.3616]
[1760555800167,1e-08,4003.4,4003.3,13.47849781]
[1760555801203,1e-08,4003.4,4003.3,15.20649781]
[1760555801378,1e-08,4003.4,4003.3,17.23524948]
[1760555804888,0.2236,4005.0,4003.4,4.2258768]
[1760555805073,0.2236,4003.8,4003.4,2.4978768]
[1760555805698,0.6968,4003.8,4003.4,2.52285556]
[1760555805894,0.2236,4003.8,4003.4,2.52285556]
[1760555806105,0.2236,4003.8,4003.4,2.4978768]
[1760555806418,0.4742,4003.5,4003.4,2.9974584]
[1760555806588,0.4742,4003.5,4003.4,2.4978768]
[1760555807097,0.001,4003.5,4003.4,2.4978768]
[1760555807299,0.001,4003.5,4003.4,2.52285556]
[1760555807499,0.001,4003.5,4003.4,2.4978768]
[1760555808486,0.4742,4003.5,4003.4,2.4978768]
[1760555809011,0.001,4003.5,4003.4,3.02243716]
[1760555809309,0.001,4003.5,4003.4,13.97801701]
[1760555809905,0.2236,4005.0,4003.4,13.97801701]
[1760555809906,0.6968,4005.0,4003.5,0.6336]
[1760555810211,0.1248,4005.1,4005.0,2.4968789]
[1760555810584,0.5665,4005.1,4005.0,2.52184768]
[1760555810783,0.4417,4005.5,4005.0,2.4968789]
[1760555810980,0.1248,4005.6,4005.5,2.49656722]
[1760555811615,0.5665,4005.6,4005.5,2.49656722]
[1760555812308,0.4417,4005.6,4005.5,2.49656722]
[1760555812511,0.2236,4006.3,4005.8,2.49632173]
[1760555813018,0.2236,4006.3,4005.7,2.49644198]
[1760555813312,0.4417,4005.9,4005.6,2.49648949]
[1760555813619,0.4417,4005.8,4005.7,2.49643648]
[1760555814784,0.4417,4005.8,4005.0,2.49685916]
[1760555814989,0.4417,4005.8,4005.7,2.49644256]
[1760555815614,0.4417,4005.8,4004.8,0.6336]
[1760555815817,0.4417,4005.7,4004.8,1.34777391]
[1760555816017,0.4417,4005.7,4003.6,2.49769584]
[1760555816018,0.2309,4004.9,4004.5,2.49714624]
[1760555816326,0.47,4004.8,4003.4,10.84654021]
[1760555816616,0.2309,4004.9,4004.4,2.4972188]
[1760555816617,0.47,4004.7,4004.4,2.4972188]
[1760555816787,0.47,4004.6,4004.2,2.49733263]
[1760555816986,0.47,4004.5,4003.1,2.498064]
[1760555817293,0.47,4004.5,4004.2,2.49736637]
[1760555817495,0.47,4004.4,4004.2,2.49736637]
[1760555817695,0.47,4004.3,4004.2,2.49736637]
[1760555819520,0.47,4004.3,4004.1,2.49738821]
[1760555819693,0.47,4004.2,4003.2,0.67242524]
[1760555819891,0.47,4004.2,4004.1,2.49744012]
[1760555820086,0.47,4004.2,4002.9,1.728]
[1760555820286,0.47,4004.1,4002.4,2.49847902]
[1760555820488,0.47,4004.1,4002.3,10.34695861]
[1760555820489,0.47,4004.0,4003.4,2.49786722]
[1760555820684,0.2267,4008.0,4004.2,2.64]
[1760555820888,30.0,4007.3,4005.3,10.34695861]
[1760555821188,30.0,4007.1,4005.9,2.49626168]
[1760555821389,0.2267,4006.0,4005.9,2.49631793]
[1760555821595,0.47,4006.6,4006.5,2.49594409]
[1760555821810,0.6967,4006.6,4006.5,2.49594409]
[1760555822294,0.2267,4006.6,4006.5,2.49594409]
[1760555822906,0.2267,4006.6,4006.4,2.49600638]
[1760555823114,0.47,4006.5,4006.4,2.49600638]
[1760555824158,0.124,4006.8,4006.5,2.49594409]
[1760555824320,0.124,4006.8,4005.4,2.61210798]
[1760555824321,0.124,4006.9,4006.6,0.02495881]
[1760555824656,0.124,4006.9,4006.8,2.49575721]
[1760555825621,0.8207,4006.9,4006.8,2.49575721]
[1760555825959,0.8207,4006.9,4006.2,0.1248]
[1760555826254,0.6967,4006.9,4006.6,2.49586663]
[1760555826433,0.124,4006.6,4006.0,0.1248]
[1760555826636,0.124,4006.6,4006.5,2.49594409]
[1760555827016,0.594,4006.6,4006.5,2.49594409]
[1760555829750,0.594,4006.6,4005.4,0.1155]
[1760555830063,30.0,4006.5,4005.7,2.49641104]
[1760555830235,10.47,4006.4,4005.8,2.49638024]
[1760555830558,2.72240169,4006.9,4005.8,2.49638024]
[1760555830559,0.2267,4005.9,4005.8,2.49638024]
[1760555830962,0.6967,4005.9,4005.7,2.4964402]
[1760555831158,0.47,4005.8,4005.7,2.4964402]
[1760555832185,0.47,4005.8,4004.6,2.49712053]
[1760555832186,4.611,4005.7,4003.7,2.49765872]
[1760555832387,30.0,4005.5,4003.6,0.1155]
[1760555832673,30.0,4005.0,4003.6,0.1155]
[1760555832874,30.6967,4004.9,4003.7,2.49768963]
[1760555833074,2.49700359,4004.8,4003.7,2.49768963]
[1760555833247,0.6967,4004.9,4003.6,0.1155]
[1760555833248,0.47,4004.7,4003.6,0.1155]
[1760555833443,2.4971283,4004.6,4003.7,2.49763579]
[1760555833644,2.49720625,4004.5,4003.7,2.49763579]
[1760555833845,2.49732049,4004.3,4003.5,0.002]
[1760555834047,2.49754626,4004.0,4003.5,0.002]
[1760555834373,0.2267,4003.6,4003.5,0.002]
[1760555834837,0.6967,4003.6,4003.5,0.002]
[1760555835873,3.19445202,4003.6,4003.5,0.002]
[1760555837538,0.6967,4003.6,4003.5,0.002]
[1760555837971,3.19445202,4003.6,4003.5,0.002]
[1760555840091,33.19445202,4003.6,4003.5,0.002]
[1760555840796,1.99445467,4007.7,4003.5,0.002]
[1760555840797,0.2274,4007.2,4003.6,2.49775202]
[1760555840984,0.2274,4006.9,4003.8,2.49757878]
[1760555841162,10.5,4006.6,4004.2,0.6336]
[1760555841363,12.99603639,4006.4,4004.3,0.5708]
[1760555841671,2.49637153,4005.9,4004.7,2.4970264]
[1760555841874,1.728,4005.6,4004.3,0.1134]
[1760555842085,0.6688,4005.8,4004.7,2.49701609]
[1760555842086,3.16519976,4005.8,4004.7,2.49701609]
[1760555842389,10.0,4005.5,4004.8,2.49698541]
[1760555842574,1.728,4005.6,4004.8,2.49698541]
[1760555842779,1.728,4005.4,4004.8,2.49698541]
[1760555843288,1.728,4005.4,4004.9,2.49693341]
[1760555843584,2.1694,4005.4,4004.9,2.49693341]
[1760555843889,0.4414,4005.3,4004.9,2.49693341]
[1760555844265,0.4414,4005.3,4004.8,2.49699543]
[1760555845257,0.6688,4005.8,4004.7,2.49706075]
[1760555845455,0.6688,4005.8,4004.9,2.49690219]
[1760555845957,0.6688,4005.8,4004.7,2.49700404]
[1760555845958,0.001,4005.4,4004.7,2.49700404]
[1760555846179,0.001,4005.4,4004.8,2.49700353]
[1760555846380,0.001,4005.4,4004.8,2.49699171]
[1760555846786,0.001,4005.4,4004.7,2.49706364]
[1760555847292,0.001,4005.4,4004.9,2.49692248]
[1760555847787,0.4424,4005.4,4004.9,2.49692248]
[1760555848294,0.001,4005.4,4004.9,2.49692248]
[1760555849591,0.4424,4005.4,4004.6,0.002]
[1760555849756,0.4424,4005.4,4004.7,2.49701953]
[1760555850487,0.4424,4005.4,4004.6,0.002]
[1760555851184,0.2274,4004.7,4004.6,0.002]
[1760555851394,0.001,4005.4,4004.7,0.1134]
[1760555851589,0.001,4005.4,4004.7,2.61046015]
[1760555851890,0.001,4005.4,4004.7,0.1134]
[1760555852108,0.001,4005.4,4004.6,0.002]
[1760555852109,0.2274,4004.8,4004.6,0.002]
[1760555852259,0.2274,4004.8,4004.2,0.002]
[1760555852260,14.72531538,4004.3,4004.2,0.002]
[1760555852660,15.16671538,4004.3,4004.2,0.002]
[1760555853593,4.66671538,4004.3,4004.2,0.002]
[1760555854062,4.22531538,4004.3,4004.2,0.002]
[1760555854715,1.728,4004.3,4004.2,0.002]
[1760555854868,4.22531538,4004.3,4004.2,0.002]
[1760555857708,4.66671538,4004.3,4004.2,0.002]
[1760555858774,15.16671538,4004.3,4004.2,0.002]
[1760555860201,15.80031538,4004.3,4004.2,0.002]
[1760555860606,2.49775202,4003.6,4003.5,0.002]
[1760555860842,2.49775202,4003.6,4003.0,1e-08]
[1760555860843,15.35935202,4003.6,4003.0,1e-08]
[1760555861025,15.359664,4003.1,4003.0,1e-08]
[1760555861441,15.801064,4003.1,4003.0,1e-08]
[1760555865902,0.2274,4003.7,4003.0,1e-08]
[1760555865903,0.2274,4008.0,4003.0,1e-08]
[1760555866102,0.2274,4007.1,4003.1,0.97647583]
[1760555866321,0.2274,4007.1,4003.0,1.7817784]
[1760555866322,0.2274,4005.8,4003.5,10.07360979]
[1760555866538,0.2274,4005.8,4003.6,2.3616]
[1760555866905,0.2274,4005.8,4004.6,2.49712458]
[1760555867255,2.93872265,4005.9,4004.7,0.02497065]
[1760555867256,0.001,4005.9,4004.7,0.02497065]
[1760555867542,0.001,4005.9,4005.0,2.49687493]
[1760555867927,0.2284,4005.9,4005.0,2.49687493]
[1760555868236,0.2284,4005.9,4004.1,2.49738806]
[1760555868237,0.001,4005.9,4005.3,2.49669188]
[1760555868828,0.001,4005.9,4005.3,2.52165879]
[1760555869432,0.001,4005.9,4005.3,2.49669188]
[1760555870060,0.001,4005.9,4005.3,2.52165879]
[1760555870960,0.001,4005.9,4005.3,2.49669188]
[1760555871261,0.001,4005.9,4005.3,3.02100616]
[1760555873943,0.001,4005.9,4003.2,0.28737542]
[1760555873944,1.35853706,4005.0,4003.2,0.28737542]
[1760555874173,1.728,4004.7,4002.5,2.49842645]
[1760555874372,1.728,4004.7,4001.7,12.57250137]
[1760555874373,1.728,4004.5,4002.7,2.49825638]
[1760555874597,2.49751445,4004.0,4002.8,2.49824297]
[1760555874744,1.728,4004.0,4002.5,2.49841259]
[1760555874937,2.49765203,4003.8,4002.5,2.49838456]
[1760555875142,2.49765203,4003.8,4002.6,2.5003243]
[1760555875344,2.49782428,4003.5,4002.6,2.5003243]
[1760555875662,2.49775201,4003.7,4002.6,0.002]
[1760555875884,2.49782656,4003.5,4002.6,2.50032356]
[1760555876090,0.1248,4003.4,4002.7,2.62311124]
[1760555876290,0.1248,4003.4,4003.0,0.27386113]
[1760555876491,0.1248,4003.4,4003.0,1e-08]
[1760555877783,2.62268131,4003.4,4003.0,1e-08]
[1760555879006,2.49794055,4003.3,4003.0,1e-08]
[1760555879475,2.4979422,4003.3,4003.0,1e-08]
[1760555879802,0.1248,4003.4,4003.0,1e-08]
[1760555880101,2.62268516,4003.4,4003.0,1e-08]
[1760555880502,2.498064,4003.1,4003.0,1e-08]
[1760555880995,2.933464,4003.1,4003.0,1e-08]
[1760555881199,32.933464,4003.1,4003.0,1e-08]
[1760555881517,2.1634,4003.7,4003.0,1e-08]
[1760555881684,2.498064,4003.1,4003.0,1e-08]
[1760555883286,0.2292,4003.9,4003.0,1e-08]
[1760555883287,0.62081818,4005.5,4003.7,2.4976553]
[1760555883509,1.08262439,4010.4,4005.3,2.49669188]
[1760555883510,0.2374,4007.1,4005.3,2.49669188]
[1760555883693,0.2374,4007.1,4005.3,3.35949188]
[1760555884027,0.2374,4006.9,4005.3,3.35949188]
[1760555884216,0.2374,4006.9,4005.3,3.38445879]
[1760555884725,0.2374,4007.1,4005.3,3.38445879]
[1760555885026,0.4354,4007.5,4005.3,5.11245879]
[1760555885230,0.2374,4008.0,4005.3,5.08749188]
[1760555885231,0.2374,4007.4,4005.3,5.08749188]
[1760555885394,0.2374,4007.4,4005.3,5.84591911]
[1760555885596,0.2374,4007.7,4005.3,5.84591911]
[1760555887520,0.2374,4007.7,4006.9,2.49569492]
[1760555887830,0.2374,4007.7,4006.9,2.52065186]
[1760555889947,0.2374,4007.7,4006.9,3.15425186]
[1760555890101,0.6728,4008.0,4006.9,3.15425186]
[1760555890629,0.2374,4007.9,4006.9,3.15425186]
[1760555890945,0.2374,4008.0,4006.9,3.38345186]
[1760555891151,0.2374,4007.7,4006.9,4.86003942]
[1760555891313,0.2374,4007.7,4006.9,3.25329492]
[1760555892257,4.942,4006.9,4002.9,0.1146]
[1760555892558,1.729,4007.0,4004.2,0.1146]
[1760555892559,30.0,4006.5,4004.2,0.1146]
[1760555892857,0.4354,4006.4,4004.6,0.6336]
[1760555893011,2.496413,4005.8,4004.7,2.49705802]
[1760555893212,2.496413,4005.8,4004.5,2.49719066]
[1760555893213,0.6728,4005.7,4004.4,2.49724774]
[1760555893418,2.49659766,4005.5,4004.5,2.49718209]
[1760555893718,2.49663853,4005.4,4004.6,0.24971821]
[1760555893947,2.49678973,4005.2,4004.6,0.24971821]
[1760555894124,2.4968881,4005.0,4004.6,0.24971821]
[1760555894331,0.2374,4004.7,4004.2,0.1146]
[1760555894534,0.2374,4004.7,4004.1,2.49739854]
[1760555894725,0.2374,4004.7,4004.2,0.6336]
[1760555894930,0.2374,4004.7,4004.0,2.49749416]
[1760555895158,0.2374,4004.7,4003.4,1.728]
[1760555895359,0.2374,4004.7,4004.1,2.49743221]
[1760555895654,0.2374,4004.7,4003.3,2.72708859]
[1760555895655,0.2374,4004.7,4003.4,1.728]
[1760555895860,0.2374,4004.7,4003.7,0.6336]
[1760555896059,0.2374,4004.7,4004.0,2.49744141]
[1760555896260,0.2374,4004.7,4004.1,2.49742693]
[1760555896561,0.2374,4004.7,4004.1,2.99693235]
[1760555896757,0.2374,4004.7,4004.2,2.49735378]
[1760555896959,0.2374,4004.7,4004.1,2.99692998]
[1760555897164,0.2374,4004.7,4004.1,2.49742456]
[1760555897824,0.2374,4004.7,4003.9,2.49756487]
[1760555898043,2.73447241,4004.7,4003.8,0.6336]
[1760555898261,0.39145442,4007.7,4006.9,2.49569492]
[1760555898550,1.70069597,4007.2,4006.9,0.88316949]
[1760555898868,0.4354,4007.8,4006.2,1.728]
[1760555899025,0.2374,4006.9,4006.3,0.6336]
[1760555899227,0.2374,4006.9,4006.6,2.49585471]
[1760555899643,0.2374,4006.9,4006.2,0.6336]
[1760555899961,0.2374,4006.9,4006.7,2.49577754]
[1760555900165,0.001,4006.8,4006.7,2.49577754]
[1760555900654,1.91106263,4006.8,4006.7,2.49577754]
[1760555901459,0.001,4006.8,4006.7,2.99494944]
[1760555901664,0.001,4006.8,4006.7,3.01990763]
[1760555902228,0.001,4006.8,4006.7,3.14390763]
[1760555902423,0.001,4006.8,4006.7,3.77750763]
[1760555903154,0.001,4006.8,4006.7,3.75254944]
[1760555903362,0.001,4006.8,4006.7,0.124]
[1760555904554,0.001,4006.8,4006.7,2.6198195]
[1760555904855,0.001,4006.8,4006.4,0.6336]
[1760555904856,0.001,4006.8,4006.4,2.61995426]
[1760555905026,0.001,4006.8,4006.5,2.4959431]
[1760555905223,0.001,4006.8,4006.4,2.61999734]
[1760555905423,0.001,4006.8,4006.7,2.4958195]
[1760555906954,0.001,4006.8,4006.7,3.64349174]